[Event "FRA-ch Teams Top 16-Bas 2022"]
[Site "Chartres"]
[Date "2022.06.16"]
[Round "8.1"]
[White "Malakhov, Vladimir"]
[Black "Di Nicolantonio, Lucas"]
[Result "1-0"]
[ECO "D46"]
[WhiteElo "2652"]
[BlackElo "2399"]
[Annotator "TA"]
[PlyCount "95"]
[EventDate "2022.06.16"]
[EventType "team-tourn"]
[EventCountry "FRA"]
[SourceTitle "playchess.com"]
[Source "ChessBase"]
[SourceQuality "1"]
[TimeControl "40/5400+30:1800+30"]

{[%evp 14,95,0,0,0,0,1,10,20,11,10,14,37,37,28,35,40,31,51,60,54,43,85,83,91,88,74,59,54,29,33,18,20,33,85,78,92,97,96,88,156,64,64,69,93,71,198,81,181,187,262,254,486,475,654,732,708,704,718,599,764,720,865,828,793,790,720,641,634,620,619,604,567,527,858,823,891,761,1533,1477,1400,1202,1403,1176]} 1. c4 {[%emt 0:00:08]} c6 {[%emt 0:01:13]} 2. Nf3 {[%emt 0:00:16]} d5 {[%emt 0:00:22]} 3. e3 {[%emt 0:00:07]} Nf6 {[%emt 0:00:48]} 4. Nc3 {[%emt 0:00:05]} e6 {[%emt 0:00:39]} 5. b3 {[%emt 0:00:07]} Bd6 {[%emt 0:00:36]} 6. Bb2 {[%emt 0:03:45]} O-O {[%emt 0:00:43]} 7. d4 {[%emt 0:00:44]} Nbd7 {[%emt 0:02:42]} 8. Bd3 {[%emt 0:00:59]} Re8 {[%emt 0:03:46] D46: Semi-Slav: 5 e3 Nbd7 6 Bd3, Black avoids the Meran.} 9. h3 {[%emt 0:02:40]} dxc4 {[%emt 0:06:55]} 10. Bxc4 {[%emt 0:07:25]} b5 {[%emt 0:02:58] The position is equal.} 11. Bd3 {[%emt 0:01:54]} Bb7 {[%emt 0:04:58] [#]} 12. O-O $146 {[%emt 0:07:00]} ({Predecessor:} 12. Qc2 Rc8 13. Ng5 h6 14. Nge4 Be7 15. O-O c5 16. dxc5 b4 17. Na4 Bxe4 18. Bxe4 Nxc5 19. Nxc5 Rxc5 20. Qb1 Nxe4 {½-½ (20) Bakhmatsky,V (2443)-Loiseau,Q (2465) Cappelle la Grande 2022}) 12... h6 {[%emt 0:24:40]} 13. Ne4 {[%emt 0:19:29]} Nxe4 {[%emt 0:10:28]} 14. Bxe4 {[%emt 0:00:04]} f5 {[%emt 0:00:16]} 15. Bd3 {[%emt 0:01:02]} a6 {[%emt 0:00:29]} 16. e4 {[%emt 0:03:02]} e5 {[%emt 0:11:39]} 17. b4 {[%emt 0:11:11]} (17. exf5 $2 e4 18. Re1 exd3 19. Qxd3 Qc7 $19) 17... c5 {[%emt 0:09:38]} 18. dxc5 {[%emt 0:11:48] [#] Strongly threatening Rc1.} (18. bxc5 {feels hotter.} Bf8 19. Rc1 Rc8 20. c6) 18... fxe4 {[%emt 0:02:57]} 19. Bxe4 {[%emt 0:00:19]} Bxe4 {[%emt 0:00:08]} 20. cxd6 {[%emt 0:00:02]} ({Don't play} 20. Qxd6 Bxf3 21. gxf3 Qg5+ 22. Kh2 (22. Kh1 Qf5 $11) 22... Qf4+ 23. Kg2 Qg5+ 24. Kh2 (24. Kh1 Qf5 $11) 24... Qf4+ 25. Kg2 Qg5+ 26. Kh2 $11 (26. Kh1 Qf5 $11)) 20... Qf6 {[%emt 0:01:29]} 21. Re1 {[%emt 0:01:21]} Bxf3 {[%emt 0:02:30]} 22. Qxf3 {[%emt 0:00:03]} Qxf3 {[%emt 0:00:06]} 23. gxf3 {[%emt 0:00:03][%cal Bg2f3,Bf3f4][%mdl 32]} Re6 {[%emt 0:01:56] [#]} (23... Rac8 $14) 24. f4 $1 $16 {[%emt 0:04:11][%cal Rf4e5]} e4 {[%emt 0:04:10]} 25. Rac1 $36 {[%emt 0:06:59][%cal Ob2e5][%mdl 2048] White is in control.} Rf8 {[%emt 0:01:10]} 26. Rc7 {[%emt 0:03:32]} Rf7 {[%emt 0:00:45]} ({Black should play} 26... Rxd6 27. Rxe4 Rf7) 27. Rc6 {[%emt 0:08:38] White is more active.} (27. Rd1 $16) 27... Rxf4 $14 {[%emt 0:00:51]} 28. Rxa6 {[%emt 0:00:28]} Kh7 {[%emt 0:01:51] White leaves nothing to chance now.} 29. Re3 {[%emt 0:01:46]} Rf3 {[%emt 0:01:52]} (29... Rf5 $16 {was called for.}) 30. Bd4 {[%emt 0:01:12]} (30. Rxf3 $18 {and White stays clearly on top. aiming for Rf7.} exf3 31. Kh2) 30... Kg6 {[%emt 0:01:33]} (30... Rf5 $16) 31. Kg2 $18 {[%emt 0:03:02]} Rxe3 {[%emt 0:01:05]} (31... Kf5 {is a better defense.} 32. Rxf3+ exf3+ 33. Kxf3 Re4) 32. fxe3 {[%emt 0:00:13][%mdl 4096] Endgame KRB-KRN} ({Less strong is} 32. Bxe3 Kf7 $16) 32... Kh5 $2 {[%emt 0:00:40]} (32... Kf7 {was necessary.} 33. Kg3 Rg6+ 34. Kf4 Ke6 35. Kxe4 Rg5) 33. Kg3 {[%emt 0:01:56] White is clearly winning.} g5 {[%emt 0:00:34]} 34. Ra5 {[%emt 0:00:34]} Rxd6 {[%emt 0:00:20]} 35. Rxb5 {[%emt 0:00:03]} Ra6 {[%emt 0:00:29]} 36. Rd5 {[%emt 0:00:49]} Nf8 {[%emt 0:00:24]} 37. Ra5 {[%emt 0:00:26]} Rc6 {[%emt 0:00:38]} 38. Rc5 {[%emt 0:00:49]} Ra6 {[%emt 0:00:08]} 39. Rc2 {[%emt 0:00:16]} Ne6 {[%emt 0:00:51]} 40. b5 {[%emt 0:00:19]} Ra4 {[%emt 0:00:34]} 41. Rb2 {[%emt 0:31:08] Hoping for b6.} Ra3 {[%emt 0:06:14]} 42. Kg2 {[%emt 0:00:00]} Nd8 {[%emt 0:05:20]} 43. b6 {[%emt 0:00:00] Kg3 is the strong threat.} Nb7 {[%emt 0:00:05]} 44. Kg3 {[%emt 0:00:00]} Ra5 {[%emt 0:01:13]} 45. Rf2 {[%emt 0:00:00]} Nd6 {[%emt 0:05:36]} 46. Rf6 {[%emt 0:00:00]} Nb7 {[%emt 0:00:05]} 47. Re6 {[%emt 0:00:00] Bg7 would kill now.} Nd8 {[%emt 0:01:14]} 48. Rd6 {[%emt 0:00:00] Weighted Error Value: White=0.14 (very precise) /Black=0.38} 1-0

[Event "FRA-ch Teams Top 16-Bas 2022"]
[Site "Chartres"]
[Date "2022.06.16"]
[Round "8.2"]
[White "Duboue, Peio"]
[Black "Van Foreest, Lucas"]
[Result "0-1"]
[ECO "C54"]
[WhiteElo "2426"]
[BlackElo "2572"]
[Annotator "TA"]
[PlyCount "96"]
[EventDate "2022.06.16"]
[EventType "team-tourn"]
[EventCountry "FRA"]
[SourceTitle "playchess.com"]
[Source "ChessBase"]
[SourceQuality "1"]
[TimeControl "40/5400+30:1800+30"]

{[%evp 12,96,12,3,12,10,21,8,22,-47,-54,-52,-47,-51,-49,-63,-51,-55,-53,-47,-56,-42,-32,-173,-174,-170,-131,-165,-148,-154,-91,-118,-86,-86,-43,-107,-112,-131,-138,-109,-97,-125,-123,-127,-131,-497,-472,-621,-618,-629,-612,-588,-457,-481,-469,-427,-333,-332,-318,-310,-321,-390,-359,-567,-545,-699,-680,-5983,-5879,-6070,-6033,-5410,-5093,-6279,-6075,-29981,-29982,-29981,-29982,-29983,-29984,-29984,-29985,-29985,-29986,-29986,-29987]} 1. e4 {[%emt 0:00:02]} e5 {[%emt 0:00:20]} 2. Nf3 {[%emt 0:00:07]} Nc6 {[%emt 0:00:08]} 3. Bc4 {[%emt 0:00:26]} Nf6 {[%emt 0:00:03]} 4. d3 {[%emt 0:00:10]} Bc5 {[%emt 0:00:03]} 5. O-O {[%emt 0:01:32]} O-O {[%emt 0:01:09]} 6. h3 {[%emt 0:02:51]} d6 {[%emt 0:00:43]} 7. c3 {[%emt 0:01:35]} a5 {[%emt 0:00:04] C54: Giuoco Piano: 4 c3 Nf6, main lines with 5 d4 and 5 d3.} 8. Re1 {[%emt 0:03:32]} Be6 {[%emt 0:00:20]} 9. Nbd2 {[%emt 0:02:40]} Ba7 {[%emt 0:01:30] [#] The position is equal.} 10. Nf1 $146 {[%emt 0:01:07] [#]} (10. Bb5 $11) ({Predecessor:} 10. Bb5 Ne7 11. d4 Ng6 12. Ba4 Nh5 13. Nf1 Nhf4 14. Ng3 exd4 15. Nxd4 Bxd4 16. cxd4 {0-1 (39) Dominguez Perez,L (2752)-So,W (2772) Berlin 2022}) 10... Nxe4 $1 $15 {[%emt 0:00:38]} 11. Rxe4 {[%emt 0:07:56] Strongly threatening Bxe6.} d5 {[%emt 0:00:12]} 12. Bxd5 {[%emt 0:00:35]} Qxd5 {[%emt 0:14:32]} 13. Ne3 {[%emt 0:26:43]} Qd6 {[%emt 0:02:37]} 14. Nc4 $1 {[%emt 0:07:33]} Bxc4 {[%emt 0:00:30]} 15. Rxc4 {[%emt 0:00:02]} Rad8 {[%emt 0:17:54]} 16. Ne1 {[%emt 0:00:05]} h6 {[%emt 0:04:47]} 17. Qf3 {[%emt 0:02:34]} ({Better is} 17. Qb3 $15 Rb8 18. Re4) 17... f5 $19 {[%emt 0:00:44][%cal Oe5e4]} 18. Qg3 {[%emt 0:11:55]} Rf6 {[%emt 0:06:48]} 19. a4 {[%emt 0:00:47]} Qd5 {[%emt 0:06:38] Threatens to win with ...e4.} 20. b3 {[%emt 0:02:04]} Bc5 {[%emt 0:01:01]} ({Black should try} 20... Qf7 21. Ra2 Rg6) 21. Ra2 {[%emt 0:09:46]} b6 {[%emt 0:04:38] Black is more active.} 22. Re2 {[%emt 0:04:21]} Kh7 {[%emt 0:02:20]} 23. h4 {[%emt 0:05:19]} (23. Qh4 $15) 23... e4 $17 {[%emt 0:06:10][%cal Re4d3]} 24. d4 {[%emt 0:00:52]} Bd6 {[%emt 0:01:19]} 25. Bf4 {[%emt 0:00:22]} Rg6 $36 {[%emt 0:00:27][%mdl 2048] Keeping White busy.} 26. Qe3 {[%emt 0:04:28]} Rg4 {[%emt 0:00:12][%csl LRf4,LRh4]} 27. Bxd6 {[%emt 0:00:14]} Qxd6 {[%emt 0:00:08]} (27... cxd6 28. f3 Rg6 29. fxe4 fxe4 30. Nc2 $15 (30. Qxe4 $2 Qxe4 31. Rxe4 d5 $19)) (27... Rxd6 28. g3 $15) 28. Nc2 $2 {[%emt 0:02:27][%mdl 8192] [#]} (28. Qh3 $17 {is tougher.}) 28... Ne7 $1 $19 {[%emt 0:01:36][%cal Bc6e7,Be7d5,Bd5e3][%mdl 32]} (28... Rxh4 29. Qg3 Rh5 30. Qxd6 Rxd6 31. g3 $15) 29. Qc1 {[%emt 0:00:53]} Nd5 {[%emt 0:00:21]} (29... Rxh4 30. g3 Qg6 31. Ne3 $19 (31. Rxc7 $2 Nd5 $19)) (29... b5 30. Rc5 $17) 30. Ne3 {[%emt 0:01:08]} Rxh4 {[%emt 0:00:40]} ({And not} 30... Nxe3 31. Qxe3 Re8 32. h5 $19 (32. g3 $2 f4 $19)) 31. g3 {[%emt 0:00:10] [#]} Nxe3 {[%emt 0:00:22]} 32. Qxe3 {[%emt 0:00:28]} (32. Rxe3 Rg4) 32... Rg4 {[%emt 0:00:06]} 33. d5 {[%emt 0:00:28]} Qxd5 {[%emt 0:00:37] ...c5 is the strong threat.} 34. Rd4 {[%emt 0:01:38]} Qg8 {[%emt 0:00:12]} 35. Rxd8 {[%emt 0:00:27]} Qxd8 {[%emt 0:00:02][%mdl 4096] Endgame KQR-KQR} 36. Rd2 {[%emt 0:00:05] Prevents Qd1+.} Qe7 {[%emt 0:00:08]} 37. Rd4 {[%emt 0:00:43]} (37. Kf1 {was called for.}) 37... h5 {[%emt 0:02:44]} 38. Rd5 {[%emt 0:00:39]} Qe6 {[%emt 0:00:34]} 39. Qd4 {[%emt 0:00:10]} e3 {[%emt 0:00:09]} 40. Qe5 {[%emt 0:00:41]} Qxe5 {[%emt 0:00:01]} 41. Rxe5 {[%emt 0:30:05]} Re4 {[%emt 0:30:10] ( -> ...e2)} 42. Rxe4 {[%emt 0:00:09]} fxe4 {[%emt 0:01:12]} 43. fxe3 {[%emt 0:00:06] KP-KP} Kg6 {[%emt 0:00:29] Black mates.} 44. Kg2 {[%emt 0:00:04]} Kg5 {[%emt 0:00:22]} 45. Kh3 {[%emt 0:00:07]} c5 {[%emt 0:01:23]} 46. c4 {[%emt 0:02:15]} g6 {[%emt 0:00:11][%cal Bg7g6,Bg6g5][%mdl 32]} 47. Kh2 {[%emt 0:00:14]} Kg4 {[%emt 0:00:16]} 48. Kg2 {[%emt 0:00:04]} g5 {[%emt 0:00:10] Weighted Error Value: White=0.78/Black=0.11 (very precise)} 0-1

[Event "FRA-ch Teams Top 16-Bas 2022"]
[Site "Chartres"]
[Date "2022.06.16"]
[Round "8.3"]
[White "Vlachos, Anatole"]
[Black "Real, Thibault"]
[Result "1-0"]
[ECO "B52"]
[WhiteElo "2410"]
[BlackElo "2262"]
[Annotator "TA"]
[PlyCount "71"]
[EventDate "2022.06.16"]
[EventType "team-tourn"]
[EventCountry "FRA"]
[SourceTitle "playchess.com"]
[Source "ChessBase"]
[SourceQuality "1"]
[TimeControl "40/5400+30:1800+30"]

{[%evp 12,71,14,13,22,22,30,31,36,35,36,33,31,0,0,0,14,0,28,24,38,25,45,44,43,23,28,0,34,0,0,0,24,8,183,182,182,181,180,179,186,88,85,83,363,377,356,333,380,358,445,385,729,727,741,722,1002,1002,993,941,921,650]} 1. e4 {[%emt 0:00:02]} c5 {[%emt 0:00:03]} 2. Nf3 {[%emt 0:00:03]} d6 {[%emt 0:00:04]} 3. Bb5+ {[%emt 0:00:03]} Bd7 {[%emt 0:00:06]} 4. Bxd7+ {[%emt 0:00:04]} Qxd7 {[%emt 0:00:06]} 5. c4 {[%emt 0:00:04]} e5 {[%emt 0:00:10]} 6. Nc3 {[%emt 0:00:07]} Nc6 {[%emt 0:00:03]} 7. d3 {[%emt 0:00:36]} Be7 {[%emt 0:00:06] B52: Sicilian: Moscow Variation with 3...Bd7.} 8. Rb1 {[%emt 0:01:23] 8.a3 is setting a new trend.} Bd8 {[%emt 0:00:06]} 9. O-O {[%emt 0:00:59]} Nge7 {[%emt 0:00:04] White is slightly better.} 10. a3 {[%emt 0:02:15]} O-O {[%emt 0:00:10]} 11. b4 {[%emt 0:00:05]} f5 {[%emt 0:01:01]} 12. bxc5 {[%emt 0:02:55]} dxc5 {[%emt 0:01:40]} 13. Nd5 {[%emt 0:00:10] [#]} Ng6 $146 {[%emt 0:01:13]} ({Predecessor:} 13... Ba5 14. Bb2 Ng6 15. Ng5 h6 16. exf5 Qxf5 17. Ne4 b6 18. Ne3 Qf7 19. g3 Rad8 {½-½ (108) Tari,A (2593)-Agdestein,S (2604) Stavanger 2017}) 14. Re1 {[%emt 0:07:15][%cal Bf1e1,Be1e4,Be4h4][%mdl 32]} Ba5 {[%emt 0:03:27]} 15. exf5 {[%emt 0:04:55]} Rxf5 {[%emt 0:39:01]} 16. Re4 {[%emt 0:00:04]} Raf8 {[%emt 0:01:20]} 17. Be3 {[%emt 0:00:27]} Nd4 {[%emt 0:11:22][%cal Rd4f3]} 18. Bxd4 {[%emt 0:06:29]} exd4 {[%emt 0:16:51]} 19. Rb2 {[%emt 0:04:21]} (19. Qe2 $5 {[%cal Rd5e7]} Bd8 20. Re6 $11) 19... Bc7 {[%emt 0:01:23]} 20. Nh4 {[%emt 0:05:25]} Nxh4 {[%emt 0:06:37]} 21. Rxh4 {[%emt 0:00:19]} Qf7 {[%emt 0:02:02][%cal Rf5f2]} 22. Qe1 {[%emt 0:02:45] Hoping for Ne7+.} Ba5 $2 {[%emt 0:09:09]} 23. Ne7+ $1 $18 {[%emt 0:02:36]} ({Worse is} 23. Qxa5 Rxf2 24. Ne7+ Qxe7 25. Rxf2 Rxf2 $15) 23... Kh8 {[%emt 0:00:10]} 24. Qe4 {[%emt 0:00:02]} Rh5 {[%emt 0:02:41]} 25. Rxh5 {[%emt 0:03:09]} Qxh5 {[%emt 0:00:07]} 26. Re2 {[%emt 0:03:05]} (26. g3 $1 $18) 26... Bc7 $16 {[%emt 0:01:14]} 27. g3 $40 {[%emt 0:02:39][%mdl 128] White attacks with force.} Qf3 $2 {[%emt 0:01:03][%mdl 8192] [#]} (27... Bd6 $16) 28. Qxf3 $1 $18 {[%emt 0:02:02]} (28. Nd5 Qxe4 29. dxe4 (29. Rxe4 Bd6 $14) 29... Ba5 $14) 28... Rxf3 {[%emt 0:00:01][%mdl 4096] Endgame KRB-KRN} 29. Nd5 {[%emt 0:00:08] Threatening mate with Re8+.} Bd6 {[%emt 0:03:40] [#]} 30. Re6 $1 {[%emt 0:00:19]} Bf8 {[%emt 0:00:00]} 31. Nf4 {[%emt 0:00:13]} ({Not} 31. Re8 Rf7 $16) 31... g5 $2 {[%emt 0:00:00]} (31... Kg8 32. Kg2 Rxf4) 32. Kg2 {[%emt 0:00:18] White is clearly winning.} g4 {[%emt 0:00:00]} 33. h3 {[%emt 0:00:39]} h5 {[%emt 0:00:00]} 34. hxg4 {[%emt 0:00:03]} hxg4 {[%emt 0:00:00]} 35. Rg6 {[%emt 0:00:08]} b5 {[%emt 0:01:10]} 36. Rxg4 {[%emt 0:00:39] Weighted Error Value: White=0.08 (flawless) /Black=0.54} 1-0

[Event "FRA-ch Teams Top 16-Bas 2022"]
[Site "Chartres"]
[Date "2022.06.16"]
[Round "8.4"]
[White "Eugene, Floryan"]
[Black "Shchekachev, Andrei"]
[Result "1/2-1/2"]
[ECO "C54"]
[WhiteElo "2370"]
[BlackElo "2508"]
[Annotator "TA"]
[PlyCount "37"]
[EventDate "2022.06.16"]
[EventType "team-tourn"]
[EventCountry "FRA"]
[SourceTitle "playchess.com"]
[Source "ChessBase"]
[SourceQuality "1"]
[TimeControl "40/5400+30:1800+30"]

{[%evp 14,37,18,10,18,10,11,0,7,7,9,0,0,0,6,0,15,0,0,0,0,-7,402,20,45,33]} 1. e4 {[%emt 0:00:57]} e5 {[%emt 0:00:04]} 2. Nf3 {[%emt 0:00:41]} Nc6 {[%emt 0:00:11]} 3. Bc4 {[%emt 0:04:40]} Nf6 {[%emt 0:02:10]} 4. d3 {[%emt 0:00:05]} h6 {[%emt 0:00:38]} 5. O-O {[%emt 0:00:56]} Bc5 {[%emt 0:00:21]} 6. c3 {[%emt 0:02:28]} d6 {[%emt 0:00:36]} 7. Re1 {[%emt 0:08:51]} O-O {[%emt 0:00:47]} 8. h3 {[%emt 0:00:30]} Bb6 $1 {[%emt 0:00:50][%mdl 4] 8...Bb6 is a critical line. C54: Giuoco Piano: 4 c3 Nf6, main lines with 5 d4 and 5 d3.} 9. a4 {[%emt 0:07:20]} a5 {[%emt 0:00:39]} 10. Na3 {[%emt 0:02:27]} Ne7 {[%emt 0:06:17] The position is equal.} 11. Bb3 {[%emt 0:06:12]} c6 {[%emt 0:02:08]} 12. d4 {[%emt 0:02:27]} Ng6 {[%emt 0:02:43]} 13. Nc4 {[%emt 0:16:00]} Bc7 {[%emt 0:01:02] [#]} 14. Bc2 $146 {[%emt 0:06:21]} ({Predecessor:} 14. d5 Re8 15. Bc2 Ne7 16. dxc6 bxc6 17. b4 axb4 18. cxb4 Be6 19. Qe2 Ng6 20. Rd1 {0-1 (29) Maiwald,J (2474)-Tomashevsky,E (2701) Rijeka 2010}) 14... exd4 {[%emt 0:19:09]} 15. Nxd4 {[%emt 0:00:22]} Re8 {[%emt 0:03:43]} 16. Bd2 {[%emt 0:01:17]} d5 {[%emt 0:01:07]} 17. exd5 {[%emt 0:00:18] [#] Black must now prevent Rxe8+.} Re5 {[%emt 0:56:35][%mdl 8192]} 18. Re2 $2 (18. Nxe5 $18 Nxe5 19. Bf4) 18... Rxe2 {[%emt 0:00:00]} 19. Qxe2 {[%emt 0:03:43] Weighted Error Value: White=0.59/Black=0.58} 1/2-1/2

[Event "FRA-ch Teams Top 16-Bas 2022"]
[Site "Chartres"]
[Date "2022.06.16"]
[Round "8.5"]
[White "Abergel, Thal"]
[Black "Hutois, Mickael"]
[Result "0-1"]
[ECO "E39"]
[WhiteElo "2378"]
[BlackElo "2238"]
[Annotator "TA"]
[PlyCount "98"]
[EventDate "2022.06.16"]
[EventType "team-tourn"]
[EventCountry "FRA"]
[SourceTitle "playchess.com"]
[Source "ChessBase"]
[SourceQuality "1"]
[TimeControl "40/5400+30:1800+30"]

{[%evp 12,98,34,-13,-14,-15,-12,-19,0,-4,0,0,0,0,0,-13,-13,-16,-13,-15,-10,-14,-16,-27,-21,-28,-18,-17,-33,-47,-47,-43,-40,-94,-100,-187,-155,-189,-189,-130,-185,-441,-404,-516,0,-284,-282,-268,-279,-712,-718,-687,-11,-647,-664,-638,-619,-782,-797,-1796,-1791,-1775,-1756,-1726,-1712,-1458,-1182,-1281,-947,-1014,-1008,-1529,-1525,-1394,-1460,-1586,-1576,-1757,-1587,-1865,-1788,-2241,-2178,-29981,-29982,-29987,-29988,-29987,-29988]} 1. d4 {[%emt 0:00:12]} Nf6 {[%emt 1:31:00]} 2. c4 {[%emt 0:00:47]} e6 {[%emt 0:00:00]} 3. Nc3 {[%emt 0:00:48]} Bb4 {[%emt 0:00:00]} 4. Qc2 {[%emt 0:00:52]} c5 {[%emt 0:00:00]} 5. dxc5 {[%emt 0:01:41]} O-O {[%emt 0:00:00]} 6. a3 {[%emt 0:05:48]} Bxc5 {[%emt 0:00:00]} 7. b4 {[%emt 0:01:41]} (7. Nf3 $14) 7... Be7 $11 {[%emt 0:00:00] E39: Nimzo-Indian: Classical: 4...c5 5 dxc5 0-0.} (7... Bd4 8. Bb2 $14) 8. Bb2 {[%emt 0:03:04]} a5 {[%emt 0:00:00]} 9. b5 {[%emt 0:00:08]} b6 {[%emt 0:00:00] The position is equal.} 10. Nf3 {[%emt 0:02:40]} Bb7 {[%emt 0:00:00]} 11. e3 {[%emt 0:05:15]} d6 {[%emt 0:00:00]} 12. Be2 {[%emt 0:01:12]} Nbd7 {[%emt 0:00:00]} 13. O-O {[%emt 0:00:30]} Rc8 {[%emt 0:00:00] [#]} 14. Nd2 $146 {[%emt 0:06:44]} ({Predecessor:} 14. Rfd1 Rc7 15. Rac1 Qa8 16. Qb1 Rfc8 17. h3 Nc5 18. Ba1 h6 19. Qb2 Bf8 20. Rc2 {0-1 (34) Risting,E (2309)-Grigoriants,S (2568) Chess.com INT 2018}) 14... Rc7 {[%emt 0:00:00]} 15. Rfc1 {[%emt 0:09:29]} Qa8 {[%emt 0:00:00]} 16. Bf1 {[%emt 0:00:02]} Rfc8 {[%emt 0:00:00]} 17. Qd1 {[%emt 0:00:22]} Nc5 {[%emt 0:00:00]} 18. Nb3 {[%emt 0:03:15]} Nfd7 {[%emt 0:00:00]} 19. Nxc5 {[%emt 0:02:31]} Rxc5 {[%emt 0:00:00]} 20. Na4 {[%emt 0:01:46]} Rg5 {[%emt 0:00:00][%cal Rb7g2]} 21. f4 {[%emt 0:04:38]} Rg6 {[%emt 0:00:00][%cal Rb7g2]} 22. g3 {[%emt 0:00:35]} (22. Rc2 $15) 22... h5 $1 $17 {[%emt 0:00:00][%cal Bh7h5,Bh5h4,Bh4h3][%mdl 32] White must now prevent ...h4.} 23. Kf2 {[%emt 0:13:13]} (23. Qxh5 $2 Bf3 24. Bg2 (24. Qh3 $2 Rh6 $19) 24... Bxg2 $19) (23. Bd3 $17 {might work better.} Bf3 24. Be2 Bxe2 25. Qxe2) 23... h4 $19 {[%emt 0:00:00]} 24. g4 {[%emt 0:01:30]} h3 $1 {[%emt 0:00:00]} 25. g5 {[%emt 0:00:16]} f6 $1 {[%emt 0:00:00]} 26. gxf6 {[%emt 0:18:22] [#]} (26. Qc2 {was worth a try.} Be4 27. Bd3 Bxd3 28. Qxd3 Qg2+ 29. Ke1 Qh1+ 30. Kd2 Qxh2+ 31. Kc3) 26... Bg2 $1 {[%emt 0:00:00]} 27. Qh5 {[%emt 0:07:33] [#]} (27. fxe7 Bxf1 28. Qxf1 Rg2+ 29. Ke1 Rxh2) (27. Be2 Nxf6) 27... Rh6 $2 {[%emt 0:00:00]} ({Black should play} 27... Nxf6 $1 $19 28. Nxb6 (28. Bxf6 Bxf6) 28... Nxh5 29. Nxa8 Bxf1 30. Rxf1 Rg2+ 31. Kf3 Rxb2) 28. f7+ $2 {[%emt 0:01:48][%mdl 8192]} (28. Qg4 $1 $11 {and White has nothing to worry.} Bxf6 29. Bxg2 Qxg2+ 30. Qxg2 hxg2 31. Bxf6 gxf6 32. Kxg2) 28... Kf8 {[%emt 0:00:00]} 29. Qg4 {[%emt 0:00:07][%csl Gb2][%cal Rg4g7] [#]} Rg6 {[%emt 0:00:00] Really sharp!} 30. Qxg6 {[%emt 0:01:12]} (30. Bxg2 Qxg2+ 31. Qxg2 Rxg2+ 32. Kf3) 30... Qf3+ {[%emt 0:00:00]} 31. Ke1 {[%emt 0:00:00]} Qxf1+ {[%emt 0:00:09]} 32. Kd2 {[%emt 0:00:01][%csl Gg6][%cal Rb2g7] White does not recover from this.} Qf2+ {[%emt 0:00:09]} 33. Kd3 {[%emt 0:01:09][%csl Gg6][%cal Rb2g7]} e5 {[%emt 0:02:11]} 34. fxe5 {[%emt 0:03:51]} dxe5 {[%emt 0:00:48] Threatens to win with ...e4+.} 35. Kc3 {[%emt 0:00:57]} Bd5 {[%emt 0:03:15][%mdl 64] Discovered Attack. This bishop pair is nice.} 36. Kb3 {[%emt 0:01:46]} Qxe3+ {[%emt 0:00:39]} ({Stronger than} 36... Bxf7 37. Qd3 Rd8 38. Qh7 $11) 37. Bc3 {[%emt 0:00:56]} Rxc4 {[%emt 0:01:06]} 38. Kb2 {[%emt 0:00:01]} Rxa4 {[%emt 0:01:07]} 39. Rc2 {[%emt 0:01:21]} Bxf7 {[%emt 0:06:09]} 40. Qf5 {[%emt 0:01:03]} Nc5 {[%emt 0:00:41] ( -> ...Nd3+)} 41. Qc8+ {[%emt 0:03:30]} Be8 {[%emt 0:00:21] ...Rc4 is the strong threat.} 42. Rf1+ {[%emt 0:06:33]} Bf6 {[%emt 0:01:25]} 43. Qd8 {[%emt 0:07:13]} Rg4 {[%emt 0:03:49] Hoping for ...Na4+.} 44. Qd6+ {[%emt 0:04:44]} Kg8 {[%emt 0:01:28][%cal Bf8g8,Bg8f7,Bf7g6][%mdl 32] aiming for ...Rg2.} 45. Qb8 {[%emt 0:00:41]} Kf7 {[%emt 0:01:07]} 46. Qc7+ {[%emt 0:00:41]} Kg6 {[%emt 0:01:10] Strongly threatening ...Rg2.} 47. Qc8 {[%emt 0:08:21]} Bd7 {[%emt 0:01:00] Black mates.} 48. Qg8 {[%emt 0:00:51]} Rg2 {[%emt 0:02:10]} 49. Qc4 {[%emt 0:02:32]} Be6 {[%emt 0:00:29] Weighted Error Value: White=0.75/Black=0.30} 0-1